bitfinex/quotes_BTCUSD_20250508
["timestamp","ask_amount","ask_price","bid_price","bid_amount"]
[1746706190424,0.05002435,99460.0,99459.0,5.088735]
[1746706195476,0.04302435,99460.0,99459.0,5.18940192]
[1746706195701,0.04302435,99460.0,99459.0,5.22120192]
[1746706196665,0.04302435,99460.0,99459.0,5.20520192]
[1746706198154,0.04302435,99460.0,99459.0,5.088735]
[1746706198958,0.04306435,99460.0,99459.0,5.088735]
[1746706200771,0.04306435,99460.0,99459.0,0.951487]
[1746706201165,0.04306435,99460.0,99459.0,5.206482]
[1746706201828,0.04306435,99460.0,99459.0,5.606482]
[1746706202584,0.03606435,99460.0,99459.0,5.606482]
[1746706204588,0.03606435,99460.0,99459.0,5.60208288]
[1746706207189,0.03606435,99460.0,99459.0,5.20208288]
[1746706209713,0.02906435,99460.0,99459.0,5.20208288]
[1746706211217,0.02906435,99460.0,99459.0,5.60208288]
[1746706211636,0.02906435,99460.0,99459.0,4.65120988]
[1746706211960,0.02906435,99460.0,99459.0,1.89796088]
[1746706212163,0.02906435,99460.0,99459.0,5.60208288]
[1746706216821,0.02206435,99460.0,99459.0,5.60208288]
[1746706222573,0.02210435,99460.0,99459.0,5.60208288]
[1746706223825,0.01510435,99460.0,99459.0,5.60208288]
[1746706228831,0.01510435,99460.0,99459.0,5.62093221]
[1746706230935,0.00810435,99460.0,99459.0,5.62093221]
[1746706231476,0.00837921,99460.0,99459.0,5.62093221]
[1746706231656,0.00837921,99460.0,99459.0,5.62972964]
[1746706238161,0.00137921,99460.0,99459.0,5.62972964]
[1746706239038,0.00137921,99460.0,99459.0,0.97473464]
[1746706239265,0.00137921,99460.0,99459.0,5.62972964]
[1746706248271,0.01677921,99460.0,99459.0,5.62972964]
[1746706249466,0.03337921,99460.0,99459.0,5.62972964]
[1746706249695,0.03337921,99460.0,99459.0,4.53597364]
[1746706252201,0.02637921,99460.0,99459.0,4.53597364]
[1746706253750,0.02637921,99460.0,99459.0,4.93597364]
[1746706254612,0.02637921,99460.0,99459.0,0.97473464]
[1746706254793,0.02637921,99460.0,99459.0,5.62972964]
[1746706259348,0.01937921,99460.0,99459.0,5.62972964]
[1746706259725,0.0166,99460.0,99459.0,5.62972964]
[1746706262142,0.11063343,99470.0,99469.0,0.20106766]
[1746706262457,0.12593343,99470.0,99469.0,4.34192039]
[1746706262873,0.14103343,99470.0,99469.0,4.36076972]
[1746706263838,0.14203343,99470.0,99469.0,4.36276972]
[1746706264281,0.14303343,99470.0,99469.0,4.36476972]
[1746706266426,0.13603343,99470.0,99469.0,4.36476972]
[1746706266632,0.13603343,99470.0,99469.0,3.56596972]
[1746706267666,0.13603343,99470.0,99469.0,3.56737148]
[1746706273491,0.12903343,99470.0,99469.0,3.56737148]
[1746706274737,0.11373343,99470.0,99469.0,3.56737148]
[1746706276161,0.12983343,99470.0,99469.0,3.56737148]
[1746706280561,0.12283343,99470.0,99469.0,3.56737148]
[1746706282506,0.12283343,99470.0,99469.0,4.88916948]
[1746706282678,0.12283343,99470.0,99469.0,4.69513948]
[1746706284217,0.12283343,99470.0,99469.0,4.55530448]
[1746706284564,0.12283343,99470.0,99469.0,4.42031571]
[1746706286820,0.10673343,99470.0,99469.0,4.42031571]
[1746706287041,0.09163343,99470.0,99469.0,4.42031571]
[1746706287618,0.08463343,99470.0,99469.0,4.42031571]
[1746706288020,0.10023343,99470.0,99469.0,4.42031571]
[1746706288248,0.11583343,99470.0,99469.0,4.28047671]
[1746706290397,0.11583343,99470.0,99469.0,3.11163548]
[1746706290612,0.11583343,99470.0,99469.0,3.06737148]
[1746706290823,0.11583343,99470.0,99469.0,2.25589484]
[1746706290994,0.31689907,99470.0,99469.0,0.36247284]
[1746706291357,0.11583343,99470.0,99469.0,0.36247284]
[1746706294669,0.10883343,99470.0,99469.0,0.36247284]
[1746706294883,0.30989907,99470.0,99469.0,0.36247284]
[1746706296765,0.10883343,99470.0,99469.0,0.36247284]
[1746706296966,0.07763343,99470.0,99469.0,0.5635405]
[1746706300294,0.07763343,99470.0,99469.0,0.5796405]
[1746706300935,0.07763343,99470.0,99469.0,0.2515335]
[1746706301313,0.07763343,99470.0,99469.0,4.9065285]
[1746706301594,0.07763343,99470.0,99469.0,5.3065285]
[1746706301841,0.07063343,99470.0,99469.0,5.3065285]
[1746706304056,0.07063343,99470.0,99469.0,5.29041671]
[1746706304963,0.07063343,99470.0,99469.0,4.89041671]
[1746706305674,0.07063343,99470.0,99469.0,4.88775054]
[1746706306187,0.07063343,99470.0,99469.0,4.89716735]
[1746706306979,0.07063343,99470.0,99469.0,4.88775054]
[1746706308819,0.07063343,99470.0,99469.0,5.28775054]
[1746706309039,0.06363343,99470.0,99469.0,5.28775054]
[1746706309176,0.06363343,99470.0,99469.0,4.88775054]
[1746706315756,0.06363343,99470.0,99469.0,5.28775054]
[1746706316053,0.05663343,99470.0,99469.0,5.28775054]
[1746706320376,0.05663343,99470.0,99469.0,0.63275554]
[1746706320590,0.05645702,99470.0,99469.0,5.28775054]
[1746706322670,9.653e-05,99476.0,99469.0,5.28775054]
[1746706322671,9.653e-05,99476.0,99475.0,0.54105554]
[1746706322869,9.653e-05,99476.0,99475.0,5.75514249]
[1746706323124,0.01171653,99508.0,99507.0,0.20099088]
[1746706323425,0.02801653,99508.0,99507.0,5.26334601]
[1746706323625,0.02801653,99508.0,99507.0,5.28218355]
[1746706323806,0.02801653,99508.0,99507.0,5.3125619]
[1746706324916,0.01171653,99508.0,99507.0,5.3125619]
[1746706325464,0.01175653,99508.0,99507.0,5.3125619]
[1746706325701,0.00504,99508.0,99507.0,5.3135619]
[1746706325925,0.00804,99508.0,99507.0,5.3145619]
[1746706326036,0.02424,99508.0,99507.0,5.3145619]
[1746706326465,0.02424,99508.0,99507.0,5.31988828]
[1746706327460,0.04004,99508.0,99507.0,5.31988828]
[1746706330079,0.03304,99508.0,99507.0,5.31988828]
[1746706332147,0.03304,99508.0,99507.0,5.32318115]
[1746706332351,0.00104,99508.0,99507.0,5.32318115]
[1746706333330,0.00104,99508.0,99507.0,0.66818615]
[1746706333846,0.00104,99508.0,99507.0,5.32318115]
[1746706337297,0.0308,99511.0,99509.0,0.20098588]
[1746706337440,0.0308,99511.0,99510.0,0.950873]
[1746706337638,0.0308,99511.0,99510.0,4.64689214]
[1746706337840,0.0308,99511.0,99510.0,4.84787696]
[1746706338083,0.0308,99511.0,99510.0,5.24787696]
[1746706338253,0.0308,99511.0,99510.0,4.84787696]
[1746706338457,0.0348,99511.0,99510.0,4.84787696]
[1746706338866,0.0338,99511.0,99510.0,4.84887696]
[1746706339191,0.0338,99511.0,99510.0,4.84987696]
[1746706339351,0.0378,99511.0,99510.0,4.58639696]
[1746706340702,0.0378,99511.0,99510.0,4.38541214]
[1746706341003,0.2387828,99511.0,99510.0,4.38541214]
[1746706341182,0.0378,99511.0,99510.0,4.38541214]
[1746706342107,0.0378,99511.0,99510.0,4.51801396]
[1746706342268,0.0378,99511.0,99510.0,4.31702914]
[1746706343045,0.0378,99511.0,99510.0,4.15412614]
[1746706343183,0.2387828,99511.0,99510.0,4.12496314]
[1746706343385,0.2387828,99511.0,99510.0,3.90494714]
[1746706344269,0.0378,99511.0,99510.0,3.90494714]
[1746706345804,0.0378,99511.0,99510.0,4.30494714]
[1746706346003,0.2387828,99511.0,99510.0,4.30494714]
[1746706346249,0.2387828,99511.0,99510.0,4.29488914]
[1746706346917,0.2079828,99511.0,99510.0,4.29488914]
[1746706348150,0.2281028,99511.0,99510.0,4.29488914]
[1746706348336,0.2079828,99511.0,99510.0,4.29488914]
[1746706349184,0.007,99511.0,99510.0,4.49587396]
[1746706349408,0.007,99511.0,99510.0,4.29488914]
[1746706349565,0.007,99511.0,99510.0,4.30194123]
[1746706350115,0.007,99511.0,99510.0,4.31134402]
[1746706351939,0.007,99511.0,99510.0,4.11021202]
[1746706352311,0.0377,99511.0,99510.0,4.11021202]
[1746706352900,0.0377,99511.0,99510.0,4.10080923]
[1746706355026,0.0222,99511.0,99510.0,4.09375714]
[1746706355862,0.007,99511.0,99510.0,4.09375714]
[1746706359624,0.007,99511.0,99510.0,4.3041638]
[1746706359804,0.007,99511.0,99510.0,4.10317898]
[1746706360935,0.007,99511.0,99510.0,0.43888898]
[1746706361066,0.007,99511.0,99510.0,4.87386798]
[1746706362716,0.2079828,99511.0,99510.0,4.87386798]
[1746706362914,0.2079828,99511.0,99510.0,4.43604198]
[1746706364215,0.2079828,99511.0,99510.0,4.03604198]
[1746706364967,0.2079828,99511.0,99510.0,4.02662014]
[1746706365907,0.007,99511.0,99510.0,4.02662014]
[1746706366120,0.007,99511.0,99510.0,4.56760496]
[1746706366338,0.007,99511.0,99510.0,4.59900496]
[1746706366537,0.007,99511.0,99510.0,4.60606794]
[1746706366748,0.007,99511.0,99510.0,4.59066794]
[1746706366953,0.003,99511.0,99510.0,4.58966794]
[1746706367161,0.003,99511.0,99510.0,4.59908528]
[1746706367366,0.003,99511.0,99510.0,4.98508528]
[1746706367853,0.003,99511.0,99510.0,4.77159568]
[1746706368053,0.01004792,99523.0,99519.0,0.20096664]
[1746706368251,0.01004782,99524.0,99518.0,0.20096759]
[1746706368429,0.20095307,99526.0,99519.0,3.23950243]
[1746706368624,0.01004752,99527.0,99519.0,3.25598275]
[1746706368833,0.01004752,99527.0,99519.0,3.65598275]
[1746706369443,0.00416,99520.0,99519.0,3.65598275]
[1746706370037,0.00716,99520.0,99519.0,3.65598275]
[1746706374258,0.00716,99520.0,99519.0,3.65538723]
[1746706375349,0.00716,99520.0,99519.0,3.65822314]
[1746706380136,0.00716,99520.0,99519.0,3.67704191]
[1746706380671,0.03886,99520.0,99519.0,1.29610391]
[1746706381923,0.03886,99520.0,99519.0,1.11023771]
[1746706382562,0.03886,99520.0,99519.0,0.34255771]
[1746706382784,0.03886,99520.0,99519.0,0.65729571]
[1746706383429,0.03886,99520.0,99519.0,0.65023273]
[1746706385967,0.03886,99520.0,99519.0,0.03482973]
[1746706386175,0.03886,99520.0,99519.0,1.09067073]
[1746706387560,0.03886,99520.0,99519.0,0.98910873]
[1746706387792,0.03886,99520.0,99519.0,0.03482973]
[1746706387793,0.13952692,99520.0,99519.0,0.03482973]
[1746706388168,0.13952692,99520.0,99519.0,0.02823611]
[1746706389514,0.13652692,99520.0,99519.0,0.02823611]
[1746706389918,0.13552692,99520.0,99519.0,0.03523611]
[1746706391147,0.13652692,99520.0,99519.0,0.03923611]
[1746706393090,0.33749155,99520.0,99519.0,0.03923611]
[1746706395405,0.33749155,99520.0,99519.0,0.02981877]
[1746706398944,0.33749155,99520.0,99519.0,0.03921909]
[1746706398945,0.3690917,99520.0,99519.0,0.03921909]
[1746706399147,0.3520324,99520.0,99519.0,0.03921909]
[1746706399504,0.3520324,99520.0,99519.0,0.02040032]
[1746706399704,0.3520324,99520.0,99519.0,0.011]
[1746706400149,0.3510324,99520.0,99519.0,0.007]
[1746706400726,0.233203,99501.0,99500.0,0.0282011]
[1746706401041,0.33386992,99501.0,99500.0,0.0283346]
[1746706401502,0.33386992,99501.0,99500.0,0.01893428]
[1746706402057,0.33586992,99501.0,99500.0,0.01893428]
[1746706402389,0.33686992,99501.0,99500.0,0.01893428]
[1746706403175,0.33686992,99501.0,99500.0,0.0001335]
[1746706407854,0.30466992,99501.0,99500.0,0.0001335]
[1746706408437,0.33676992,99501.0,99500.0,0.0001335]
[1746706408659,0.33676992,99501.0,99500.0,0.01891856]
[1746706410275,0.33676992,99501.0,99500.0,0.01892013]
[1746706411870,0.33676992,99501.0,99500.0,0.01892201]
[1746706412483,0.33676992,99501.0,99500.0,0.0283179]
[1746706424789,0.30466992,99501.0,99500.0,0.0283179]
[1746706429641,0.33506992,99501.0,99500.0,0.0283179]
[1746706430042,0.20103411,99486.0,99483.0,0.20103888]
[1746706430284,0.01005156,99487.0,99484.0,2.870105]
[1746706430285,0.01005176,99485.0,99484.0,2.870105]
[1746706430494,0.01005176,99485.0,99484.0,2.87729936]
[1746706430694,0.21108714,99485.0,99484.0,2.87729936]
[1746706430900,0.21108714,99485.0,99484.0,2.81694036]
[1746706431097,0.21108303,99487.0,99484.0,2.81694036]
[1746706431302,0.01005166,99486.0,99485.0,2.840929]
[1746706431510,0.01005166,99486.0,99485.0,2.824835]
[1746706431948,0.01005166,99486.0,99485.0,2.82822758]
[1746706432160,0.21108553,99486.0,99485.0,3.51927858]
[1746706432357,0.21108303,99487.0,99485.0,3.51927858]
[1746706432520,0.21108303,99487.0,99486.0,3.515886]
[1746706432921,0.21108303,99487.0,99486.0,3.51928001]
[1746706433356,0.21108303,99487.0,99486.0,3.25775301]
[1746706433743,0.21108303,99487.0,99486.0,3.25875301]
[1746706433943,0.21108303,99487.0,99486.0,3.09781201]
[1746706434972,0.21208303,99487.0,99486.0,3.09981201]
[1746706441999,0.1987644,99487.0,99486.0,3.10923602]
[1746706442276,0.20881596,99487.0,99486.0,3.12808457]
[1746706443607,0.20881596,99487.0,99486.0,3.03553857]
[1746706444089,0.20881596,99487.0,99486.0,2.82933057]
[1746706446345,0.20881596,99487.0,99486.0,2.62933657]
[1746706450064,0.20881596,99487.0,99486.0,0.03466657]
[1746706450217,0.20881596,99487.0,99486.0,0.18806457]
[1746706450425,0.20881596,99487.0,99486.0,0.03466657]
[1746706450625,0.20881596,99487.0,99486.0,3.15543257]
[1746706451010,0.20881596,99487.0,99486.0,0.18806457]
[1746706451011,0.23961596,99487.0,99486.0,0.18806457]
[1746706451265,0.34028288,99487.0,99486.0,0.03466657]
[1746706451774,0.34028288,99487.0,99486.0,0.03127256]
[1746706452418,0.34028288,99487.0,99486.0,0.03027256]
[1746706452607,0.34228288,99487.0,99486.0,0.002]
[1746706452918,0.23305149,99477.0,99476.0,0.00942401]
[1746706453132,0.23305149,99477.0,99476.0,0.16282201]
[1746706453332,0.23305149,99477.0,99476.0,0.18165559]
[1746706453684,0.23305149,99477.0,99476.0,0.03166002]
[1746706454116,0.23405149,99477.0,99476.0,0.02825759]
[1746706454361,0.62705149,99477.0,99476.0,0.02825759]
[1746706455220,0.62805149,99477.0,99476.0,0.03025759]
[1746706456612,0.62805149,99477.0,99476.0,0.02083358]
[1746706457620,0.2010657,99470.0,99467.0,0.20107117]
[1746706457821,0.2010657,99470.0,99468.0,1.76012]
[1746706458041,0.2010657,99470.0,99468.0,1.76356001]
[1746706458191,0.2010657,99470.0,99469.0,1.889894]
[1746706458404,0.2010657,99470.0,99469.0,1.5834673]
[1746706459034,0.2020657,99470.0,99469.0,1.0110063]
[1746706459212,0.2010657,99470.0,99469.0,1.0110063]
[1746706459618,0.2020657,99470.0,99469.0,1.0140063]
[1746706459819,0.001,99470.0,99469.0,1.0140063]
[1746706460023,0.001,99470.0,99469.0,1.0150063]
[1746706460382,0.01005308,99472.0,99469.0,1.0110063]
[1746706460736,0.21111577,99472.0,99470.0,1.235943]
[1746706461235,0.21111577,99472.0,99471.0,0.00344287]
[1746706461568,0.20106269,99472.0,99471.0,0.81381387]
[1746706461738,0.20106269,99472.0,99471.0,2.02311787]
[1746706462420,0.001,99472.0,99471.0,2.02411787]
[1746706462602,0.2020616,99472.0,99471.0,2.02411787]
[1746706462812,0.21211468,99472.0,99471.0,2.02411787]
[1746706464169,0.01105308,99472.0,99471.0,2.02411787]
[1746706465494,0.21211468,99472.0,99471.0,2.02411787]
[1746706465666,0.21211468,99472.0,99471.0,1.96073487]
[1746706465866,0.21211468,99472.0,99471.0,0.78161287]
[1746706466072,0.22721468,99472.0,99471.0,0.78161287]
[1746706466267,0.22721468,99472.0,99471.0,0.15784087]
[1746706466674,0.24371468,99472.0,99471.0,0.15784087]
[1746706467827,0.24371468,99472.0,99471.0,0.154398]
[1746706468234,0.3443816,99472.0,99471.0,0.001]
[1746706469026,0.20108821,99459.0,99457.0,0.01005459]
[1746706469229,0.20108821,99459.0,99458.0,1.561609]
[1746706469428,0.20108821,99459.0,99458.0,1.56892182]
[1746706469634,0.20108821,99459.0,99458.0,0.05793596]
[1746706469833,0.20108821,99459.0,99458.0,1.53373328]
[1746706470636,0.20208821,99459.0,99458.0,1.16344328]
[1746706470835,0.20208821,99459.0,99458.0,0.66034928]
[1746706471599,0.20208821,99459.0,99458.0,0.60196282]
[1746706472022,0.20208821,99459.0,99458.0,0.60396282]
[1746706472205,0.20208821,99459.0,99458.0,0.62276313]
[1746706472614,0.20208821,99459.0,99458.0,0.60396282]
[1746706473303,0.20208821,99459.0,99458.0,0.62276313]
[1746706473509,0.20208821,99459.0,99458.0,0.60396282]
[1746706473708,0.19508821,99459.0,99458.0,0.62276313]
[1746706474533,0.19508821,99459.0,99458.0,0.63216191]
[1746706474679,0.19508821,99459.0,99458.0,0.62209991]
[1746706474883,0.21128821,99459.0,99458.0,0.62209991]
[1746706475301,0.19508821,99459.0,99458.0,0.62209991]
[1746706475687,0.22728821,99459.0,99458.0,0.62009991]
[1746706475927,0.22628821,99459.0,99458.0,0.60870113]
[1746706476189,0.22628821,99459.0,99458.0,0.59090082]
[1746706476190,0.22728821,99459.0,99458.0,0.59090082]
[1746706476384,0.32795513,99459.0,99458.0,0.00831282]
[1746706476656,0.32795513,99459.0,99458.0,0.001]
[1746706477647,0.32895513,99459.0,99458.0,0.001]
[1746706478557,0.20110406,99451.0,99450.0,0.002]
[1746706479134,0.21620406,99451.0,99450.0,0.002]
[1746706479281,0.23260406,99451.0,99450.0,0.002]
[1746706479885,0.20110406,99451.0,99450.0,0.01075961]
[1746706480051,0.20110406,99451.0,99450.0,0.003]
[1746706480252,0.20110406,99451.0,99450.0,0.01075961]
[1746706480513,0.20110406,99451.0,99450.0,0.00741609]
[1746706480740,0.19510406,99451.0,99450.0,0.00741609]
[1746706482316,0.19510406,99451.0,99450.0,0.02015839]
[1746706485366,0.19510406,99451.0,99450.0,0.01075961]
[1746706485771,0.19510406,99451.0,99450.0,0.02015839]
[1746706486167,0.22630406,99451.0,99450.0,0.02015839]
[1746706486575,0.22630406,99451.0,99450.0,0.01239878]
[1746706486927,0.22630406,99451.0,99450.0,0.003]
[1746706487679,0.21930406,99451.0,99450.0,0.003]
[1746706488001,0.21930406,99451.0,99450.0,0.01075961]
[1746706488614,0.21930406,99451.0,99450.0,0.003]
[1746706489241,0.21830406,99451.0,99450.0,0.002]
[1746706489523,0.22130406,99451.0,99450.0,0.002]
[1746706490705,0.22130406,99451.0,99450.0,0.00976128]
[1746706491047,0.22130406,99451.0,99450.0,0.00641609]
[1746706491594,0.22130406,99451.0,99450.0,0.002]
[1746706492605,0.22112758,99451.0,99450.0,0.002]
[1746706494334,0.3217945,99451.0,99450.0,0.002]
[1746706495168,0.3197945,99451.0,99450.0,0.002]
[1746706495543,0.3207945,99451.0,99450.0,0.002]
[1746706496095,0.3207945,99451.0,99450.0,0.003]
[1746706496301,0.3237945,99451.0,99450.0,0.003]
[1746706501790,0.005,99451.0,99450.0,0.003]
[1746706502203,0.005,99451.0,99450.0,2.70571107]
[1746706502430,0.005,99451.0,99450.0,0.02626007]
[1746706502563,0.005,99451.0,99450.0,0.01086007]
[1746706502766,0.005,99451.0,99450.0,3.39848107]
[1746706504184,0.005,99451.0,99450.0,3.41468107]
[1746706505297,0.005,99451.0,99450.0,3.43088107]
[1746706506030,0.005,99451.0,99450.0,2.99191007]
[1746706507237,0.005,99451.0,99450.0,3.00711007]
[1746706507999,0.00504,99451.0,99450.0,3.00711007]
[1746706508646,0.00504,99451.0,99450.0,3.20821615]
[1746706510486,0.00504,99451.0,99450.0,2.97571007]
[1746706512063,0.20614406,99451.0,99450.0,2.97571007]
[1746706512808,0.20614406,99451.0,99450.0,2.50173307]
[1746706512983,0.20614406,99451.0,99450.0,1.47136807]
[1746706514547,0.20614406,99451.0,99450.0,0.01086007]
[1746706514690,0.20614406,99451.0,99450.0,2.25626807]
[1746706515757,0.20614406,99451.0,99450.0,1.99564807]
[1746706515906,0.20614406,99451.0,99450.0,1.46332607]
[1746706516405,0.20614406,99451.0,99450.0,1.25600156]
[1746706516609,0.20614406,99451.0,99450.0,0.0065254]
[1746706516811,0.20614406,99451.0,99450.0,2.8602674]
[1746706517050,0.20614406,99451.0,99450.0,2.8602744]
[1746706524808,0.00504,99451.0,99450.0,2.8602744]
[1746706525016,0.00504,99451.0,99450.0,3.06138048]
[1746706525423,0.00504,99451.0,99450.0,0.0065254]
[1746706525650,0.00504,99451.0,99450.0,3.6675814]
[1746706526145,0.00504,99451.0,99450.0,3.86868748]
[1746706526429,0.00504,99451.0,99450.0,3.6675814]
[1746706526905,0.00504,99451.0,99450.0,3.5494844]
[1746706527089,0.00504,99451.0,99450.0,3.75059048]
[1746706527777,0.00504,99451.0,99450.0,3.19312648]
[1746706527950,0.00504,99451.0,99450.0,1.98264848]
[1746706529589,0.00504,99451.0,99450.0,7.03264848]
[1746706534359,0.00504,99451.0,99450.0,7.032472]
[1746706536118,0.00504,99451.0,99450.0,0.207455]
[1746706536465,0.00504,99451.0,99450.0,9.428289]
[1746706538398,0.00504,99451.0,99450.0,9.124407]
[1746706542032,0.00504,99451.0,99450.0,9.156707]
[1746706542768,0.00304,99451.0,99450.0,9.156707]
[1746706543649,0.00404,99451.0,99450.0,9.157707]
[1746706543853,0.00104,99451.0,99450.0,9.157707]
[1746706544247,0.00304,99451.0,99450.0,9.17955205]
[1746706544654,0.00204,99451.0,99450.0,9.17755205]
[1746706545054,0.00304,99451.0,99450.0,9.17955205]
[1746706545251,0.00304,99451.0,99450.0,9.14725205]
[1746706545458,0.00304,99451.0,99450.0,9.128407]
[1746706549396,0.00304,99451.0,99450.0,0.21052358]
[1746706549575,0.00304,99451.0,99450.0,10.26052358]
[1746706550539,0.00304,99451.0,99450.0,9.31971058]
[1746706550655,0.03514,99451.0,99450.0,5.2713795]
[1746706550859,0.03514,99451.0,99450.0,1.64219386]
[1746706551416,0.03514,99451.0,99450.0,1.60639386]
[1746706552067,0.03514,99451.0,99450.0,1.80749994]
[1746706552470,0.03514,99451.0,99450.0,1.73153658]
[1746706554606,0.03514,99451.0,99450.0,1.79325838]
[1746706556600,0.03514,99451.0,99450.0,1.80267485]
[1746706556992,0.03514,99451.0,99450.0,1.74095305]
[1746706557378,0.03514,99451.0,99450.0,1.73153658]
[1746706559633,0.00304,99451.0,99450.0,1.73153658]
[1746706560189,0.00304,99451.0,99450.0,0.50133658]
[1746706560377,0.00304,99451.0,99450.0,5.26052358]
[1746706560584,0.00304,99451.0,99450.0,8.08204358]
[1746706564552,0.00304,99451.0,99450.0,8.14375011]
[1746706564802,0.00304,99451.0,99450.0,8.16257923]
[1746706565290,0.00304,99451.0,99450.0,8.17199374]
[1746706565502,0.00304,99451.0,99450.0,8.20389374]
[1746706565872,0.00304,99451.0,99450.0,8.60389374]
[1746706566078,0.00304,99451.0,99450.0,8.54218721]
[1746706568657,0.00304,99451.0,99450.0,8.51028721]
[1746706570960,0.00304,99451.0,99450.0,0.63876721]
[1746706571301,0.00304,99451.0,99450.0,10.68876721]
[1746706575394,0.00304,99451.0,99450.0,10.68876613]
[1746706575570,0.00304,99451.0,99450.0,10.68876564]
[1746706578392,0.00304,99451.0,99450.0,10.57686264]
[1746706579590,0.00304,99451.0,99450.0,10.17686264]
[1746706579791,0.00304,99451.0,99450.0,2.19141656]
[1746706579792,0.23504406,99451.0,99450.0,2.19141656]
[1746706579948,0.23504406,99451.0,99450.0,1.56771656]
[1746706580173,0.23504406,99451.0,99450.0,0.71187956]
[1746706580512,0.23504406,99451.0,99450.0,0.60349152]
[1746706581044,0.23504406,99451.0,99450.0,0.46695026]
[1746706581759,0.23504406,99451.0,99450.0,0.08052926]
[1746706582169,0.23504406,99451.0,99450.0,0.48772524]
[1746706582377,0.23504406,99451.0,99450.0,0.48331374]
[1746706582525,0.23504406,99451.0,99450.0,0.48883201]
[1746706582924,0.23488706,99451.0,99450.0,0.42713427]
[1746706583969,0.23488706,99451.0,99450.0,0.29176625]
[1746706584183,0.23488706,99451.0,99450.0,0.30118303]
[1746706584423,0.23488706,99451.0,99450.0,0.01493505]
[1746706584601,0.23488706,99451.0,99450.0,0.30173405]
[1746706584748,0.23488706,99451.0,99450.0,0.01493505]
[1746706585166,0.23488706,99451.0,99450.0,0.83204905]
[1746706585962,0.23488706,99451.0,99450.0,0.01493505]
[1746706586361,0.23488706,99451.0,99450.0,0.00941678]
[1746706589763,0.0100556,99447.0,99444.0,0.20111732]
[1746706589964,0.0100556,99447.0,99444.0,7.98328332]
[1746706590166,0.21116813,99447.0,99445.0,7.76631117]
[1746706590296,0.21116813,99447.0,99446.0,7.62719]
[1746706590496,0.0100556,99447.0,99446.0,7.62719]
[1746706590696,0.0100556,99447.0,99446.0,7.65543812]
[1746706590898,0.2112135,99447.0,99446.0,7.65543812]
[1746706591495,0.00104575,99447.0,99446.0,7.85655229]
[1746706591696,4.575e-05,99447.0,99446.0,7.85655229]
[1746706592153,0.00104575,99447.0,99446.0,7.85655229]
[1746706592356,0.00204575,99447.0,99446.0,7.85655229]
[1746706592860,0.00104575,99447.0,99446.0,7.85655229]
[1746706593226,0.00204575,99447.0,99446.0,7.85855229]
[1746706593834,0.00204575,99447.0,99446.0,7.86181948]
[1746706596522,0.00204575,99447.0,99446.0,3.32994822]
[1746706596632,0.03414575,99447.0,99446.0,3.32994822]
[1746706601139,0.03414575,99447.0,99446.0,3.31111614]
[1746706601544,0.00208575,99447.0,99446.0,3.31111614]
[1746706602055,0.00208575,99447.0,99446.0,3.32995032]
[1746706602207,0.00208575,99447.0,99446.0,0.29857895]
[1746706602596,0.00208575,99447.0,99446.0,8.05457795]
[1746706603639,0.00208575,99447.0,99446.0,8.06997795]
[1746706603841,0.00208575,99447.0,99446.0,8.08507795]
[1746706604254,0.00208575,99447.0,99446.0,8.47566191]
[1746706604734,0.00208575,99447.0,99446.0,8.41396417]
[1746706605920,0.00208575,99447.0,99446.0,8.39512999]
[1746706607013,0.00208575,99447.0,99446.0,8.41396738]
[1746706608050,0.00208575,99447.0,99446.0,8.42338626]
[1746706608865,0.00208575,99447.0,99446.0,8.41396738]
[1746706609626,0.00208575,99447.0,99446.0,8.39886738]
[1746706610756,0.00208575,99447.0,99446.0,8.38346738]
[1746706611826,0.00208575,99447.0,99446.0,8.36462999]
[1746706613161,0.00208575,99447.0,99446.0,8.39288459]
[1746706614642,0.00208575,99447.0,99446.0,8.37404819]
[1746706614835,0.00208575,99447.0,99446.0,8.39288432]
[1746706620193,0.00208575,99447.0,99446.0,8.86515124]
[1746706621447,0.00208575,99447.0,99446.0,8.95500716]
[1746706622230,0.00208575,99447.0,99446.0,8.86515124]
[1746706624941,0.39508575,99455.0,99454.0,0.54109799]
[1746706625140,0.39508575,99455.0,99454.0,10.51497947]
[1746706625334,0.39508575,99455.0,99454.0,10.5338156]
[1746706625742,0.39508575,99455.0,99454.0,10.9338156]
[1746706625961,0.39508575,99455.0,99454.0,10.9432338]
[1746706626302,0.39608575,99455.0,99454.0,10.9432338]
[1746706627198,0.39708575,99455.0,99454.0,10.9442338]
[1746706628924,0.39708575,99455.0,99454.0,10.9768338]
[1746706629522,0.39708575,99455.0,99454.0,10.9442338]
[1746706631347,0.39708575,99455.0,99454.0,0.9756018]
[1746706631551,0.39708575,99455.0,99454.0,10.9442338]
[1746706636029,0.39708575,99455.0,99454.0,10.5442338]
[1746706636234,0.39708575,99455.0,99454.0,9.5840338]
[1746706636389,0.39708575,99455.0,99454.0,8.0667058]
[1746706639528,0.39708575,99455.0,99454.0,7.52560781]
[1746706639713,0.39708575,99455.0,99454.0,7.7267058]
[1746706640126,0.39708575,99455.0,99454.0,8.1267058]
[1746706641759,0.39708575,99455.0,99454.0,7.90166899]
[1746706641958,0.39008575,99455.0,99454.0,7.90166899]
[1746706642365,0.39008575,99455.0,99454.0,7.53396899]
[1746706642840,0.39008575,99455.0,99454.0,7.90166899]
[1746706643419,0.38908575,99455.0,99454.0,7.90166899]
[1746706643612,0.38808575,99455.0,99454.0,7.90366899]
[1746706643814,0.38908575,99455.0,99454.0,7.90366899]
[1746706644037,0.39008575,99455.0,99454.0,7.90366899]
[1746706644363,0.38808575,99455.0,99454.0,7.90166899]
[1746706644580,0.38908575,99455.0,99454.0,7.90366899]
[1746706645612,0.39008575,99455.0,99454.0,7.90466899]
[1746706647335,0.39008575,99455.0,99454.0,7.91986899]
[1746706648309,0.39008575,99455.0,99454.0,0.62343299]
[1746706648504,0.39008575,99455.0,99454.0,10.38219699]
[1746706649137,0.38308575,99455.0,99454.0,10.38219699]
[1746706654578,0.38308575,99455.0,99454.0,10.39161102]
[1746706656293,0.37608575,99455.0,99454.0,10.39161102]
[1746706656478,0.37590929,99455.0,99454.0,10.39161102]
[1746706658918,0.37590929,99455.0,99454.0,0.61764702]
[1746706659128,0.37590929,99455.0,99454.0,10.39161102]
[1746706663296,0.36890929,99455.0,99454.0,10.39161102]
[1746706666622,0.36890929,99455.0,99454.0,5.53627902]
[1746706666833,0.36890929,99455.0,99454.0,10.39161102]
[1746706667038,0.36890929,99455.0,99454.0,10.84807794]
[1746706667331,0.36890929,99455.0,99454.0,10.86357794]
[1746706668071,0.36790929,99455.0,99454.0,10.86257794]
[1746706668271,0.36690929,99455.0,99454.0,10.86057794]
[1746706668471,0.36690929,99455.0,99454.0,11.27887794]
[1746706668677,0.36690929,99455.0,99454.0,11.28794027]
[1746706668678,0.36790929,99455.0,99454.0,11.28794027]